fUSD/lending_fUSD_20250905
["ID","MTS","AMOUNT","RATE_DAILY","PERIOD"]
[383643880,1757061051094,-400.0,0.00025066,2]
[383643881,1757061051103,-400.0,0.00025066,2]
[383643882,1757061051113,-400.0,0.00025066,2]
[383643883,1757061051124,-500.64251687,0.00025066,2]
[383643884,1757061051135,-400.0,0.00025066,2]
[383643885,1757061051146,-400.0,0.00025066,2]
[383643886,1757061051156,-400.0,0.00025066,2]
[383643887,1757061051167,-400.0,0.00025066,2]
[383643888,1757061051178,-400.0,0.00025066,2]
[383643889,1757061051189,-400.0,0.00025066,2]
[383643890,1757061051199,-400.0,0.00025066,2]
[383643891,1757061051208,-400.0,0.00025066,2]
[383643892,1757061051217,-400.0,0.00025066,2]
[383643893,1757061051227,-400.0,0.00025066,2]
[383643894,1757061051237,-400.0,0.00025066,2]
[383643895,1757061051248,-490.0,0.00025066,2]
[383643896,1757061051258,-400.0,0.00025066,2]
[383643897,1757061051269,-400.0,0.00025066,2]
[383643898,1757061051280,-400.0,0.00025066,2]
[383643899,1757061051289,-400.0,0.00025066,2]
[383643900,1757061051299,-400.0,0.00025066,2]
[383643901,1757061051310,-400.0,0.00025066,2]
[383643902,1757061051320,-400.0,0.00025066,2]
[383643903,1757061051330,-400.0,0.00025066,2]
[383643904,1757061051339,-277.55745505,0.00025066,2]
[383643905,1757061051350,-400.0,0.00025066,2]
[383643906,1757061051359,-400.0,0.00025066,2]
[383643907,1757061051368,-400.0,0.00025066,2]
[383643908,1757061051378,-400.0,0.00025066,2]
[383643909,1757061051391,-400.0,0.00025066,2]
[383643910,1757061051401,-500.0,0.00025066,2]
[383643911,1757061051411,-400.0,0.00025066,2]
[383643912,1757061051420,-400.0,0.00025066,2]
[383643913,1757061051431,-400.0,0.00025066,2]
[383643914,1757061051441,-400.0,0.00025066,2]
[383643915,1757061051451,-400.0,0.00025066,2]
[383643916,1757061051462,-400.0,0.00025066,2]
[383643917,1757061051472,-400.0,0.00025066,2]
[383643918,1757061051481,-400.0,0.00025066,2]
[383643919,1757061051490,-411.67712914,0.00025066,2]
[383643920,1757061051500,-400.0,0.00025066,2]
[383643921,1757061051510,-512.45615812,0.00025066,2]
[383643922,1757061051519,-400.0,0.00025066,2]
[383643923,1757061051528,-500.0,0.00025066,2]
[383643924,1757061051537,-400.0,0.00025066,2]
[383643925,1757061051547,-402.08334146,0.00025066,2]
[383643926,1757061051556,-400.0,0.00025066,2]
[383643927,1757061051565,-500.0,0.00025066,2]
[383643928,1757061051574,-509.94138257,0.00025066,2]
[383643929,1757061051584,-400.0,0.00025066,2]
[383643930,1757061051593,-400.0,0.00025066,2]
[383643931,1757061051602,-400.0,0.00025066,2]
[383643932,1757061051610,-402.65819609,0.00025066,2]
[383643933,1757061051619,-400.0,0.00025066,2]
[383643934,1757061051628,-400.0,0.00025066,2]
[383643935,1757061051637,-401.93477517,0.00025066,2]
[383643936,1757061051646,-400.0,0.00025066,2]
[383643937,1757061051656,-400.0,0.00025066,2]
[383643938,1757061051665,-400.0,0.00025066,2]
[383643939,1757061051674,-400.0,0.00025066,2]
[383643940,1757061051684,-400.0,0.00025066,2]
[383643941,1757061051693,-400.0,0.00025066,2]
[383643942,1757061051703,-402.33585699,0.00025066,2]
[383643943,1757061051712,-400.0,0.00025066,2]
[383643944,1757061051721,-400.0,0.00025066,2]
[383643945,1757061051730,-400.0,0.00025066,2]
[383643946,1757061051740,-400.0,0.00025066,2]
[383643947,1757061051750,-400.0,0.00025066,2]
[383643948,1757061051759,-400.0,0.00025066,2]
[383643949,1757061051768,-400.0,0.00025066,2]
[383643950,1757061051778,-400.0,0.00025066,2]
[383643951,1757061051787,-400.0,0.00025066,2]
[383643952,1757061051797,-400.0,0.00025066,2]
[383643953,1757061051806,-400.0,0.00025066,2]
[383643954,1757061051816,-403.56551114,0.00025066,2]
[383643955,1757061051825,-411.10495581,0.00025066,2]
[383643956,1757061051836,-400.0,0.00025066,2]
[383643957,1757061051847,-332.88588809,0.00025066,2]
[383643958,1757061051858,-400.0,0.00025066,2]
[383643959,1757061051867,-402.1256788,0.00025066,2]
[383643960,1757061051876,-401.8156134,0.00025066,2]
[383643961,1757061051885,-400.0,0.00025066,2]
[383643962,1757061051893,-400.0,0.00025066,2]
[383643963,1757061051903,-400.0,0.00025066,2]
[383643964,1757061051912,-300.0,0.00025066,2]
[383643965,1757061051922,-400.0,0.00025066,2]
[383643966,1757061051932,-402.82846893,0.00025066,2]
[383643967,1757061051941,-400.0,0.00025066,2]
[383643968,1757061051951,-400.0,0.00025066,2]
[383643969,1757061051960,-400.0,0.00025066,2]
[383643970,1757061051969,-400.0,0.00025066,2]
[383643971,1757061051978,-403.78286303,0.00025066,2]
[383643972,1757061051987,-400.0,0.00025066,2]
[383643973,1757061051997,-400.0,0.00025066,2]
[383643974,1757061052006,-400.0,0.00025066,2]
[383643975,1757061052016,-400.0,0.00025066,2]
[383643976,1757061052025,-151.0,0.00025066,7]
[383643977,1757061052037,-151.0,0.00025066,7]
[383643978,1757061052047,-400.0,0.00025066,2]
[383643979,1757061052057,-400.0,0.00025066,2]
[383643980,1757061052066,-400.0,0.00025066,2]
[383643981,1757061052075,-400.0,0.00025066,2]
[383643982,1757061052085,-400.0,0.00025066,2]
[383643983,1757061052094,-400.0,0.00025066,2]
[383643984,1757061052103,-400.0,0.00025066,2]
[383643985,1757061052112,-400.0,0.00025066,2]
[383643986,1757061052122,-400.0,0.00025066,2]
[383643987,1757061052131,-400.0,0.00025066,2]
[383643988,1757061052144,-404.27238066,0.00025066,2]
[383643989,1757061052153,-400.0,0.00025066,2]
[383643990,1757061052163,-400.0,0.00025066,2]
[383643991,1757061052172,-400.0,0.00025066,2]
[383643992,1757061052181,-400.0,0.00025066,2]
[383643993,1757061052191,-406.21010769,0.00025066,2]
[383643994,1757061052201,-400.0,0.00025066,2]
[383643995,1757061052210,-492.74012564,0.00025066,2]
[383643996,1757061052219,-531.0320888,0.00025066,2]
[383643997,1757061052229,-400.0,0.00025066,2]
[383643998,1757061052238,-400.0,0.00025066,2]
[383643999,1757061052248,-400.0,0.00025066,2]
[383644000,1757061052257,-400.0,0.00025066,2]
[383644001,1757061052267,-400.0,0.00025066,2]
[383644002,1757061052276,-400.0,0.00025066,2]
[383644003,1757061052286,-400.0,0.00025066,2]
[383644004,1757061052296,-400.0,0.00025066,2]
[383644005,1757061052306,-475.53403592,0.00025066,2]
[383644006,1757061052316,-400.0,0.00025066,2]
[383644007,1757061052326,-491.1042042,0.00025066,2]
[383644008,1757061052336,-400.0,0.00025066,2]
[383644009,1757061052345,-400.0,0.00025066,2]
[383644010,1757061052355,-226.3577431,0.00025066,2]
[383644011,1757061052365,-400.0,0.00025066,2]
[383644012,1757061052374,-405.56227618,0.00025066,2]
[383644013,1757061052388,-400.0,0.00025066,2]
[383644014,1757061052398,-400.0,0.00025066,2]
[383644015,1757061052408,-400.0,0.00025066,2]
[383644016,1757061052419,-403.49418685,0.00025066,2]
[383644017,1757061052428,-400.0,0.00025066,2]
[383644018,1757061052438,-413.39601634,0.00025066,2]
[383644019,1757061052447,-406.64200729,0.00025066,2]
[383644020,1757061052457,-400.0,0.00025066,2]
[383644021,1757061052466,-406.45429548,0.00025066,2]
[383644022,1757061052476,-400.0,0.00025066,2]
[383644023,1757061052486,-400.0,0.00025066,2]
[383644024,1757061052495,-407.96221924,0.00025066,2]
[383644025,1757061052504,-400.0,0.00025066,2]
[383644026,1757061052514,-403.37151964,0.00025066,2]
[383644027,1757061052523,-400.0,0.00025066,2]
[383644028,1757061052532,-400.0,0.00025066,2]
[383644029,1757061052542,-400.0,0.00025066,2]
[383644030,1757061052552,-264.84793786,0.00025066,2]
[383644031,1757061052562,-400.0,0.00025066,2]
[383644032,1757061052574,-400.0,0.00025066,2]
[383644033,1757061052583,-400.0,0.00025066,2]
[383644034,1757061052593,-403.31966392,0.00025066,2]
[383644035,1757061052602,-400.0,0.00025066,2]
[383644036,1757061052612,-400.0,0.00025066,2]
[383644037,1757061052622,-400.0,0.00025066,2]
[383644038,1757061052631,-400.0,0.00025066,2]
[383644039,1757061052640,-400.0,0.00025066,2]
[383644040,1757061052650,-400.0,0.00025066,2]
[383644041,1757061052659,-400.0,0.00025066,2]
[383644042,1757061052668,-400.0,0.00025066,2]
[383644043,1757061052678,-67930.3642103,0.00025067,2]
[383644044,1757061052687,-411.60311119,0.00025067,2]
[383644045,1757061052696,-407.25639064,0.00025067,2]
[383644046,1757061052706,-400.0,0.00025067,2]
[383644047,1757061052715,-400.0,0.00025067,2]
[383644048,1757061052725,-400.0,0.00025067,2]
[383644049,1757061052735,-405.29726255,0.00025067,2]
[383644050,1757061052744,-400.0,0.00025067,2]
[383644051,1757061052754,-400.0,0.00025067,2]
[383644052,1757061052764,-400.0,0.00025067,2]
[383644053,1757061052773,-400.0,0.00025067,2]
[383644054,1757061052783,-402.49138864,0.00025067,2]
[383644055,1757061052792,-400.0,0.00025067,2]
[383644056,1757061052801,-400.0,0.00025067,2]
[383644057,1757061052811,-400.0,0.00025067,2]
[383644058,1757061052820,-400.0,0.00025067,2]
[383644059,1757061052830,-400.0,0.00025067,2]
[383644060,1757061052839,-400.0,0.00025067,2]
[383644061,1757061052848,-400.0,0.00025067,2]
[383644062,1757061052858,-400.0,0.00025067,2]
[383644063,1757061052868,-400.0,0.00025067,2]
[383644064,1757061052877,-400.0,0.00025067,2]
[383644065,1757061052886,-402.1580183,0.00025067,2]
[383644066,1757061052896,-400.0,0.00025067,2]
[383644067,1757061052905,-400.0,0.00025067,2]
[383644068,1757061052914,-400.0,0.00025067,2]
[383644069,1757061052924,-400.0,0.00025067,2]
[383644070,1757061052933,-400.0,0.00025067,2]
[383644071,1757061052942,-400.0,0.00025067,2]
[383644072,1757061052951,-400.0,0.00025067,2]
[383644073,1757061052961,-407.44420795,0.00025067,2]
[383644074,1757061053121,-400.0,0.00025067,2]
[383644075,1757061053131,-400.0,0.00025067,2]
[383644076,1757061053141,-400.0,0.00025067,2]
[383644077,1757061053151,-400.0,0.00025067,2]
[383644078,1757061053160,-400.0,0.00025067,2]
[383644079,1757061053170,-400.0,0.00025067,2]
[383644080,1757061053179,-400.0,0.00025067,2]
[383644081,1757061053189,-407.95660939,0.00025067,2]
[383644082,1757061053199,-400.0,0.00025067,2]
[383644083,1757061053209,-400.0,0.00025067,2]
[383644084,1757061053219,-400.0,0.00025067,2]
[383644085,1757061053231,-400.0,0.00025067,2]
[383644086,1757061053242,-400.0,0.00025067,2]
[383644087,1757061053253,-400.0,0.00025067,2]
[383644088,1757061053262,-400.0,0.00025067,2]
[383644089,1757061053272,-404.5671319,0.00025067,2]
[383644090,1757061053282,-400.0,0.00025067,2]
[383644091,1757061053292,-400.0,0.00025067,2]
[383644092,1757061053301,-400.0,0.00025067,2]
[383644093,1757061053311,-400.0,0.00025067,2]
[383644094,1757061053320,-400.0,0.00025067,2]
[383644095,1757061053329,-400.0,0.00025067,2]
[383644096,1757061053339,-400.0,0.00025067,2]
[383644097,1757061053349,-400.0,0.00025067,2]
[383644098,1757061053358,-400.0,0.00025067,2]
[383644099,1757061053368,-400.0,0.00025067,2]
[383644100,1757061053379,-400.0,0.00025067,2]
[383644101,1757061053389,-400.0,0.00025067,2]
[383644102,1757061053399,-400.0,0.00025067,2]
[383644103,1757061053409,-400.0,0.00025067,2]
[383644104,1757061053418,-402.43596259,0.00025067,2]
[383644105,1757061053428,-400.0,0.00025067,2]
[383644106,1757061053438,-411.96454226,0.00025067,2]
[383644107,1757061053448,-400.0,0.00025067,2]
[383644108,1757061053459,-400.0,0.00025067,2]
[383644109,1757061053468,-400.0,0.00025067,2]
[383644110,1757061053478,-400.0,0.00025067,2]
[383644111,1757061053487,-467.83,0.00025067,2]
[383644112,1757061053496,-400.0,0.00025067,2]
[383644113,1757061053506,-400.0,0.00025067,2]
[383644114,1757061053516,-400.0,0.00025067,2]
[383644115,1757061053525,-400.0,0.00025067,2]
[383644116,1757061053535,-9360.330118,0.00025067,2]
[383644117,1757061053544,-400.0,0.00025067,2]
[383644118,1757061053553,-400.0,0.00025067,2]
[383644119,1757061053563,-400.0,0.00025067,2]
[383644120,1757061053572,-400.0,0.00025067,2]
[383644121,1757061053582,-400.0,0.00025067,2]
[383644122,1757061053592,-400.0,0.00025067,2]
[383644123,1757061053602,-400.0,0.00025067,2]
[383644124,1757061053611,-442.81,0.00025067,2]
[383644125,1757061053621,-3295.8747976,0.00025067,2]
[383644126,1757061053632,-500.0,0.00025067,2]
[383644127,1757061053642,-500.0,0.00025067,2]
[383644128,1757061053652,-151.0,0.00025068,2]
[383644129,1757061053663,-302.46,0.00025068,2]
[383644130,1757061053673,-150.0,0.00025068,2]
[383644131,1757061053684,-1271.396,0.0002507,9]
[383644132,1757061053694,-150.331,0.0002507,9]
[383644133,1757061053703,-500.0,0.00025073,2]
[383644134,1757061053713,-500.0,0.00025073,2]
[383644135,1757061053722,-500.67093906,0.00025073,2]
[383644136,1757061053733,-351.79920531,0.00025073,2]
[383644137,1757061053743,-517.06786109,0.00025073,2]
[383644138,1757061053753,-500.0,0.00025073,2]
[383644139,1757061053764,-20586.4968345,0.00025097,3]
[383644140,1757061053774,-21366.3720667,0.00025097,3]
[383644141,1757061053785,-150.0,0.00025113,2]
[383644142,1757061053796,-150.0,0.00025117,2]
[383644143,1757061053808,-150.0,0.00025117,2]
[383644144,1757061053821,-500.0,0.00025117,2]
[383644145,1757061053830,-500.0,0.00025117,2]
[383644146,1757061053841,-150.0,0.00025117,2]
[383644147,1757061053850,-200.0,0.00025117,2]
[383644148,1757061053859,-500.0,0.00025117,2]
[383644149,1757061053869,-500.0,0.00025117,2]
[383644150,1757061053878,-500.0,0.00025117,2]
[383644151,1757061053888,-150.0,0.00025117,2]
[383644152,1757061053898,-150.0,0.00025117,2]
[383644153,1757061053907,-150.0,0.00025117,2]
[383644154,1757061053917,-150.0,0.00025117,2]
[383644155,1757061053927,-500.0,0.00025117,2]
[383644156,1757061053936,-500.0,0.00025117,2]
[383644157,1757061053945,-150.0,0.00025117,2]
[383644158,1757061053955,-150.0,0.00025117,2]
[383644159,1757061053964,-500.0,0.00025117,2]
[383644160,1757061053974,-150.0,0.00025117,2]
[383644161,1757061053984,-150.0,0.00025117,2]
[383644162,1757061053994,-150.0,0.00025117,2]
[383644163,1757061054004,-150.0,0.00025117,2]
[383644164,1757061054013,-150.0,0.00025117,2]
[383644165,1757061054022,-191.31230879,0.00025117,2]
[383644166,1757061054032,-150.0,0.00025117,2]
[383644167,1757061054041,-500.0,0.0002513,2]
[383644168,1757061054051,-1425.0,0.0002514,2]
[383644169,1757061054060,-1425.0,0.00025148,2]
[383644170,1757061054070,-371.0,0.00025165,2]
[383644171,1757061054080,-709.0633521,0.00025204,2]
[383644172,1757061054091,-150.0,0.00025211,2]
[383644173,1757061054101,-21366.3720667,0.00025212,3]
[383644174,1757061054110,-500.0,0.0002522,2]
[383644175,1757061054119,-2401.0,0.00025222,2]
[383644176,1757061054129,-1425.0,0.00025222,2]
[383644177,1757061054138,-1425.0,0.00025228,2]
[383644178,1757061054147,-500.0,0.00025232,2]
[383644179,1757061054156,-20586.4968345,0.00025234,3]
[383644180,1757061054166,-201.06,0.00025244,2]
[383644181,1757061054176,-168.93,0.00025254,2]
[383644182,1757061054186,-150.0,0.0002526,2]
[383644183,1757061054196,-150.0,0.0002526,4]
[383644184,1757061054205,-150.0,0.0002526,4]
[383644185,1757061054218,-2291.1400769,0.00025261,2]
[383644186,1757061054227,-20586.4968345,0.00025262,3]
[383644187,1757061054238,-21366.3720667,0.00025262,3]
[383644188,1757061054248,-300.0,0.00025267,19]
[383644189,1757061054259,-1425.0,0.00025268,2]
[383644190,1757061054268,-995.98393698,0.0002527,2]
[383644191,1757061054278,-1332.69,0.00025273,2]
[383644192,1757061054288,-487.0,0.00025276,2]
[383644193,1757061054298,-20586.4968345,0.00025276,3]
[383644194,1757061054308,-21366.3720667,0.00025276,3]
[383644195,1757061054317,-168.0,0.00025278,2]
[383644196,1757061054326,-20586.4968345,0.00025282,3]
[383644197,1757061054336,-21366.3720667,0.00025282,3]
[383644198,1757061054345,-500.0,0.00025286,2]
[383644199,1757061054354,-500.0,0.00025286,2]
[383644200,1757061054361,-519.87310342,0.00025286,2]
[383644201,1757061054370,-1425.0,0.00025287,2]
[383644202,1757061054380,-41172.9936689,0.00025291,3]
[383644203,1757061054391,-42732.7441335,0.00025291,3]
[383644204,1757061054399,-390.12,0.000253,2]
[383644205,1757061054408,-174.25,0.000253,2]
[383644206,1757061054416,-500.0,0.00025301,2]
[383644207,1757061054425,-41172.9936689,0.00025302,3]
[383644208,1757061054434,-42732.7441335,0.00025302,3]
[383644209,1757061054444,-20586.4968345,0.0002531,3]
[383644210,1757061054454,-21366.3720667,0.0002531,3]
[383644211,1757061054463,-666.0,0.00025311,2]
[383644212,1757061054473,-20586.4968345,0.00025311,3]
[383644213,1757061054483,-42732.7441335,0.00025311,3]
[383644214,1757061054492,-42732.7441335,0.00025312,3]
[383644215,1757061054501,-500.0,0.00025312,2]
[383644216,1757061054511,-500.0,0.00025312,2]
[383644217,1757061054520,-503.0,0.00025312,2]
[383644218,1757061054530,-1425.0,0.00025313,2]
[383644219,1757061054540,-150.0,0.00025314,2]
[383644220,1757061054549,-21366.3720667,0.00025319,3]
[383644221,1757061054558,-150.0,0.00025319,2]
[383644222,1757061054566,-150.0,0.0002532,2]
[383644223,1757061054575,-42732.7441335,0.0002532,3]
[383644224,1757061054584,-500.0,0.00025321,2]
[383644225,1757061054593,-500.0,0.00025321,2]
[383644226,1757061054602,-500.0,0.00025321,2]
[383644227,1757061054611,-21366.3720667,0.00025321,3]
[383644228,1757061054621,-42732.7441335,0.00025322,3]
[383644229,1757061054630,-1932.9540454,0.00025322,2]
[383644230,1757061054639,-1087.0,0.00025323,2]
[383644231,1757061054648,-487.0,0.00025323,7]
[383644232,1757061054658,-1425.0,0.00025324,2]
[383644233,1757061054667,-489.0,0.00025329,7]
[383644234,1757061054676,-21366.3720667,0.00025329,3]
[383644235,1757061054686,-400.0,0.00025329,2]
[383644236,1757061054695,-400.0,0.00025329,2]
[383644237,1757061054705,-400.0,0.00025329,2]
[383644238,1757061054714,-400.0,0.00025329,2]
[383644239,1757061054723,-400.0,0.00025329,2]
[383644240,1757061054732,-593.95039527,0.0002533,2]
[383644241,1757061054742,-85465.4882669,0.0002533,3]
[383644242,1757061054751,-500.0,0.00025331,2]
[383644243,1757061054762,-500.0,0.00025331,2]
[383644244,1757061054771,-69629.43702371,0.00025332,2]
[383644245,1757061054780,-1425.0,0.00025336,2]
[383644246,1757061054790,-1425.0,0.00025337,2]
[383644247,1757061054799,-772.92,0.00025338,2]
[383644248,1757061054809,-179.431953,0.00025338,2]
[383644249,1757061054817,-400.0,0.00025338,2]
[383644250,1757061054827,-1153.66,0.00025338,2]
[383644251,1757061054836,-440.35982123,0.00025338,2]
[383644252,1757061054845,-694.2,0.00025338,2]
[383644253,1757061054854,-400.0,0.00025338,2]
[383644254,1757061054863,-269.58315705,0.00025338,2]
[383644255,1757061054872,-400.0,0.00025338,2]
[383644256,1757061054882,-400.0,0.00025338,2]
[383644257,1757061054891,-400.0,0.00025338,2]
[383644258,1757061054900,-400.0,0.00025338,2]
[383644259,1757061054910,-400.0,0.00025338,2]
[383644260,1757061054919,-400.0,0.00025338,2]
[383644261,1757061054928,-400.0,0.00025338,2]
[383644262,1757061054936,-404.93,0.00025338,2]
[383644263,1757061054945,-400.0,0.00025338,2]
[383644264,1757061054953,-400.0,0.00025338,2]
[383644265,1757061054962,-291.45655317,0.00025338,2]
[383644266,1757061054971,-400.0,0.00025338,2]
[383644267,1757061054980,-400.0,0.00025338,2]
[383644268,1757061054990,-400.0,0.00025338,2]
[383644269,1757061054999,-400.0,0.00025338,2]
[383644270,1757061055008,-400.0,0.00025338,2]
[383644271,1757061055018,-400.0,0.00025338,2]
[383644272,1757061055027,-400.0,0.00025338,2]
[383644273,1757061055036,-546.82087531,0.00025338,2]
[383644274,1757061055045,-400.0,0.00025338,2]
[383644275,1757061055054,-400.0,0.00025338,2]
[383644276,1757061055063,-400.0,0.00025338,2]
[383644277,1757061055073,-400.0,0.00025338,2]
[383644278,1757061055082,-400.0,0.00025338,2]
[383644279,1757061055092,-400.0,0.00025338,2]
[383644280,1757061055101,-400.0,0.00025338,2]
[383644281,1757061055110,-531.32,0.00025338,2]
[383644282,1757061055120,-400.0,0.00025338,2]
[383644283,1757061055129,-400.0,0.00025338,2]
[383644284,1757061055138,-2859.99,0.00025338,2]
[383644285,1757061055148,-400.0,0.00025338,2]
[383644286,1757061055157,-436.28,0.00025338,2]
[383644287,1757061055166,-474.25312966,0.00025338,2]
[383644288,1757061055177,-400.0,0.00025338,2]
[383644289,1757061055186,-400.0,0.00025338,2]
[383644290,1757061055196,-400.0,0.00025338,2]
[383644291,1757061055205,-400.0,0.00025338,2]
[383644292,1757061055215,-400.0,0.00025338,2]
[383644293,1757061055224,-210.02127472,0.00025338,2]
[383644294,1757061055235,-484.25883228,0.00025338,2]
[383644295,1757061055245,-400.0,0.00025338,2]
[383644296,1757061055254,-400.0,0.00025338,2]
[383644297,1757061055263,-400.0,0.00025338,2]
[383644298,1757061055273,-400.0,0.00025338,2]
[383644299,1757061055283,-400.0,0.00025338,2]
[383644300,1757061055292,-400.0,0.00025338,2]
[383644301,1757061055301,-400.0,0.00025339,2]
[383644302,1757061055312,-268.04096529,0.00025339,2]
[383644303,1757061055321,-400.0,0.00025339,2]
[383644304,1757061055330,-400.0,0.00025339,2]
[383644305,1757061055340,-400.0,0.00025339,2]
[383644306,1757061055349,-400.0,0.00025339,2]
[383644307,1757061055359,-400.0,0.00025339,2]
[383644308,1757061055369,-500.23155127,0.00025339,2]
[383644309,1757061055381,-400.0,0.00025339,2]
[383644310,1757061055391,-400.0,0.00025339,2]
[383644311,1757061055401,-400.0,0.00025339,2]
[383644312,1757061055411,-400.0,0.00025339,2]
[383644313,1757061055423,-400.0,0.00025339,2]
[383644314,1757061055434,-400.0,0.00025339,2]
[383644315,1757061055444,-400.0,0.00025339,2]
[383644316,1757061055454,-400.0,0.00025339,2]
[383644317,1757061055463,-400.0,0.00025339,2]
[383644318,1757061055517,-400.0,0.00025339,2]
[383644319,1757061055527,-400.0,0.00025339,2]
[383644320,1757061055536,-400.0,0.00025339,2]
[383644321,1757061055545,-400.0,0.00025339,2]
[383644322,1757061055555,-400.0,0.00025339,2]
[383644323,1757061055564,-400.0,0.00025339,2]
[383644324,1757061055573,-400.0,0.00025339,2]
[383644325,1757061055582,-400.0,0.00025339,2]
[383644326,1757061055592,-400.0,0.00025339,2]
[383644327,1757061055601,-400.0,0.00025339,2]
[383644328,1757061055611,-400.0,0.00025339,2]
[383644329,1757061055620,-400.0,0.00025339,2]
[383644330,1757061055629,-400.0,0.00025339,2]
[383644331,1757061055639,-266.32,0.00025339,2]
[383644332,1757061055648,-400.0,0.00025339,2]
[383644333,1757061055657,-400.0,0.00025339,2]
[383644334,1757061055666,-400.0,0.00025339,2]
[383644335,1757061055676,-400.0,0.00025339,2]
[383644336,1757061055685,-400.0,0.00025339,2]
[383644337,1757061055694,-400.0,0.00025339,2]
[383644338,1757061055703,-159.9856117,0.00025339,2]
[383644339,1757061055712,-267.43693493,0.00025339,2]
[383644340,1757061055721,-538.24210581,0.00025339,2]
[383644341,1757061055730,-332.46162505,0.00025339,2]
[383644342,1757061055739,-400.0,0.00025339,2]
[383644343,1757061055747,-400.0,0.00025339,2]
[383644344,1757061055757,-415.83,0.00025339,2]
[383644345,1757061055765,-400.0,0.00025339,2]
[383644346,1757061055774,-400.0,0.00025339,2]
[383644347,1757061055783,-253.54355885,0.00025339,2]
[383644348,1757061055792,-400.0,0.00025339,2]
[383644349,1757061055801,-400.0,0.00025339,2]
[383644350,1757061055810,-400.0,0.00025339,2]
[383644351,1757061055819,-400.0,0.00025339,2]
[383644352,1757061055829,-197.75319164,0.00025339,2]
[383644353,1757061055838,-400.0,0.00025339,2]
[383644354,1757061055847,-400.0,0.00025339,2]
[383644355,1757061055857,-400.0,0.00025339,2]
[383644356,1757061055866,-353.84,0.00025339,2]
[383644357,1757061055875,-400.0,0.00025339,2]
[383644358,1757061055884,-400.0,0.00025339,2]
[383644359,1757061055894,-400.0,0.00025339,2]
[383644360,1757061055903,-400.0,0.00025339,2]
[383644361,1757061055912,-400.00339505,0.00025339,2]
[383644362,1757061055922,-400.0,0.00025339,2]
[383644363,1757061055931,-497.76,0.00025339,2]
[383644364,1757061055940,-400.0,0.00025339,2]
[383644365,1757061055949,-400.0,0.00025339,2]
[383644366,1757061055959,-400.0,0.00025339,2]
[383644367,1757061055968,-400.0,0.00025339,2]
[383644368,1757061055977,-400.0,0.00025339,2]
[383644369,1757061055987,-400.0,0.00025339,2]
[383644370,1757061055996,-400.0,0.00025339,2]
[383644371,1757061056004,-400.0,0.00025339,2]
[383644372,1757061056014,-400.0,0.00025339,2]
[383644373,1757061056023,-400.0,0.00025339,2]
[383644374,1757061056032,-400.0,0.00025339,2]
[383644375,1757061056041,-400.0,0.00025339,2]
[383644376,1757061056050,-400.0,0.00025339,2]
[383644377,1757061056059,-400.0,0.00025339,2]
[383644378,1757061056068,-400.0,0.00025339,2]
[383644379,1757061056077,-400.0,0.00025339,2]